fUST/lending_fUST_20240920
["ID","MTS","AMOUNT","RATE_DAILY","PERIOD"]
[338651330,1726847447263,-347.85724891,0.00016712,2]
[338651331,1726847447272,-151.0,0.00016712,2]
[338651332,1726847447282,-500.0,0.00016712,2]
[338651333,1726847447290,-761.01,0.00016712,2]
[338651334,1726847447300,-500.0,0.00016712,2]
[338651335,1726847447309,-500.0,0.00016712,2]
[338651336,1726847447319,-668.31,0.00016712,2]
[338651337,1726847447328,-500.0,0.00016712,2]
[338651338,1726847447337,-682.12,0.00016712,2]
[338651339,1726847447346,-332.5408252,0.00016712,2]
[338651340,1726847447355,-500.0,0.00016712,2]
[338651341,1726847447364,-500.0,0.00016712,2]
[338651342,1726847447373,-500.0,0.00016712,2]
[338651343,1726847447383,-500.0,0.00016712,2]
[338651344,1726847447392,-500.0,0.00016712,2]
[338651345,1726847447402,-500.0,0.00016712,2]
[338651346,1726847447411,-500.0,0.00016712,2]
[338651347,1726847447420,-1013.35,0.00016712,2]
[338651348,1726847447430,-500.0,0.00016712,2]
[338651349,1726847447439,-500.0,0.00016712,2]
[338651350,1726847447448,-500.0,0.00016712,2]
[338651351,1726847447458,-2979.29,0.00016712,2]
[338651352,1726847447467,-500.0,0.00016712,2]
[338651353,1726847447476,-380.67,0.00016712,2]
[338651354,1726847447485,-577.53,0.00016712,2]
[338651355,1726847447494,-500.0,0.00016712,2]
[338651356,1726847447507,-500.0,0.00016712,2]
[338651357,1726847447516,-500.0,0.00016712,2]
[338651358,1726847447525,-500.0,0.00016712,2]
[338651359,1726847447534,-151.0,0.00016712,2]
[338651360,1726847447545,-151.0,0.00016712,2]
[338651361,1726847447556,-500.0,0.00016712,2]
[338651362,1726847447565,-151.0,0.00016712,2]
[338651363,1726847447574,-151.0,0.00016712,2]
[338651364,1726847447585,-859.03,0.00016712,2]
[338651365,1726847447594,-500.0,0.00016712,2]
[338651366,1726847447603,-500.0,0.00016712,2]
[338651367,1726847447613,-500.0,0.00016712,2]
[338651368,1726847447623,-505.47665703,0.00016712,2]
[338651369,1726847447633,-500.0,0.00016712,2]
[338651370,1726847447643,-500.0,0.00016712,2]
[338651371,1726847447654,-500.0,0.00016712,2]
[338651372,1726847447663,-1204.64,0.00016712,2]
[338651373,1726847447672,-500.0,0.00016712,2]
[338651374,1726847447682,-625.31,0.00016712,2]
[338651375,1726847447691,-742.26,0.00016712,2]
[338651376,1726847447700,-500.0,0.00016712,2]
[338651377,1726847447709,-197.897181,0.00016712,2]
[338651378,1726847447718,-232.75,0.00016712,2]
[338651379,1726847447727,-678.32,0.00016712,2]
[338651380,1726847447736,-314.978215,0.00016712,2]
[338651381,1726847447745,-314.978215,0.00016712,2]
[338651382,1726847447754,-197.897181,0.00016712,2]
[338651383,1726847447763,-1076.45659559,0.00016712,2]
[338651384,1726847447772,-151.0,0.00016712,2]
[338651385,1726847447781,-151.0,0.00016712,2]
[338651386,1726847447790,-748.33,0.00016712,2]
[338651387,1726847447799,-314.978215,0.00016712,2]
[338651388,1726847447809,-314.978215,0.00016712,2]
[338651389,1726847447818,-500.0,0.00016712,2]
[338651390,1726847447828,-151.0,0.00016712,2]
[338651391,1726847447837,-507.59,0.00016712,2]
[338651392,1726847447846,-242.181537,0.00016712,2]
[338651393,1726847447856,-190.24451271,0.00016712,2]
[338651394,1726847447865,-1005.22,0.00016712,2]
[338651395,1726847447875,-683.6,0.00016712,2]
[338651396,1726847447884,-1122.17,0.00016712,2]
[338651397,1726847447894,-25885.18,0.00016712,2]
[338651398,1726847447905,-898.3,0.00016712,2]
[338651399,1726847447917,-500.0,0.00016712,2]
[338651400,1726847447927,-255.061028,0.00016712,2]
[338651401,1726847447936,-510.34,0.00016712,2]
[338651402,1726847447945,-7987.48,0.00016712,2]
[338651403,1726847447954,-500.0,0.00016712,2]
[338651404,1726847447963,-1165.73,0.00016712,2]
[338651405,1726847447972,-151.0,0.00016712,2]
[338651406,1726847447982,-151.0,0.00016712,2]
[338651407,1726847447991,-500.0,0.00016712,2]
[338651408,1726847448000,-762.73,0.00016712,2]
[338651409,1726847448010,-500.0,0.00016712,2]
[338651410,1726847448019,-500.0,0.00016712,2]
[338651411,1726847448030,-500.0,0.00016712,2]
[338651412,1726847448039,-500.0,0.00016712,2]
[338651413,1726847448049,-500.0,0.00016712,2]
[338651414,1726847448058,-500.0,0.00016712,2]
[338651415,1726847448067,-500.0,0.00016712,2]
[338651416,1726847448076,-1008.79,0.00016712,2]
[338651417,1726847448085,-801.13,0.00016712,2]
[338651418,1726847448095,-1470.01,0.00016712,2]
[338651419,1726847448104,-500.0,0.00016712,2]
[338651420,1726847448113,-500.0,0.00016712,2]
[338651421,1726847448122,-551.8,0.00016712,2]
[338651422,1726847448132,-1141.47,0.00016712,2]
[338651423,1726847448142,-500.0,0.00016712,2]
[338651424,1726847448150,-625.68,0.00016712,2]
[338651425,1726847448160,-744.38,0.00016712,2]
[338651426,1726847448169,-500.0,0.00016712,2]
[338651427,1726847448179,-500.0,0.00016712,2]
[338651428,1726847448188,-429.08,0.00016712,2]
[338651429,1726847448198,-689.43,0.00016712,2]
[338651430,1726847448207,-500.0,0.00016712,2]
[338651431,1726847448216,-612.23,0.00016712,2]
[338651432,1726847448226,-200.0,0.00016712,2]
[338651433,1726847448235,-258.37886384,0.00016712,2]
[338651434,1726847448245,-500.0,0.00016712,2]
[338651435,1726847448254,-303.297713,0.00016712,2]
[338651436,1726847448435,-303.297713,0.00016712,2]
[338651437,1726847448448,-692.59,0.00016712,2]
[338651438,1726847448457,-364.86,0.00016712,2]
[338651439,1726847448467,-500.0,0.00016712,2]
[338651440,1726847448477,-303.297713,0.00016712,2]
[338651441,1726847448486,-303.297713,0.00016712,2]
[338651442,1726847448495,-500.0,0.00016712,2]
[338651443,1726847448506,-326.65756,0.00016712,2]
[338651444,1726847448516,-500.0,0.00016712,2]
[338651445,1726847448525,-500.0,0.00016712,2]
[338651446,1726847448535,-326.65756,0.00016712,2]
[338651447,1726847448544,-500.0,0.00016712,2]
[338651448,1726847448554,-568.13,0.00016712,2]
[338651449,1726847448563,-656.31,0.00016712,2]
[338651450,1726847448572,-998.36,0.00016712,2]
[338651451,1726847448582,-500.0,0.00016712,2]
[338651452,1726847448591,-500.0,0.00016712,2]
[338651453,1726847448600,-509.26,0.00016712,2]
[338651454,1726847448609,-500.0,0.00016712,2]
[338651455,1726847448618,-500.0,0.00016712,2]
[338651456,1726847448627,-500.0,0.00016712,2]
[338651457,1726847448638,-638.41,0.00016712,2]
[338651458,1726847448647,-500.0,0.00016712,2]
[338651459,1726847448656,-500.0,0.00016712,2]
[338651460,1726847448665,-500.0,0.00016712,2]
[338651461,1726847448676,-730.6,0.00016712,2]
[338651462,1726847448692,-500.0,0.00016712,2]
[338651463,1726847448706,-705.45,0.00016712,2]
[338651464,1726847448716,-500.0,0.00016712,2]
[338651465,1726847448725,-511.27,0.00016712,2]
[338651466,1726847448734,-500.0,0.00016712,2]
[338651467,1726847448744,-500.0,0.00016712,2]
[338651468,1726847448754,-500.0,0.00016712,2]
[338651469,1726847448763,-500.0,0.00016712,2]
[338651470,1726847448772,-543.66,0.00016712,2]
[338651471,1726847448783,-1247.9,0.00016712,2]
[338651472,1726847448792,-176.12,0.00016712,2]
[338651473,1726847448802,-615.92,0.00016712,2]
[338651474,1726847448811,-504.61,0.00016712,2]
[338651475,1726847448821,-746.39,0.00016712,2]
[338651476,1726847448830,-151.0,0.00016712,2]
[338651477,1726847448842,-500.0,0.00016712,2]
[338651478,1726847448851,-500.0,0.00016712,2]
[338651479,1726847448861,-500.0,0.00016712,2]
[338651480,1726847448873,-500.0,0.00016712,2]
[338651481,1726847448882,-500.0,0.00016712,2]
[338651482,1726847448893,-500.0,0.00016712,2]
[338651483,1726847448903,-500.0,0.00016712,2]
[338651484,1726847448917,-500.0,0.00016712,2]
[338651485,1726847448926,-2311.09,0.00016712,2]
[338651486,1726847448939,-500.0,0.00016712,2]
[338651487,1726847448951,-500.0,0.00016712,2]
[338651488,1726847448961,-500.0,0.00016712,2]
[338651489,1726847448971,-151.0,0.00016712,2]
[338651490,1726847448981,-309.73,0.00016712,2]
[338651491,1726847448990,-500.0,0.00016712,2]
[338651492,1726847449001,-500.0,0.00016712,2]
[338651493,1726847449011,-500.0,0.00016712,2]
[338651494,1726847449021,-500.0,0.00016712,2]
[338651495,1726847449032,-151.0,0.00016712,2]
[338651496,1726847449042,-601.16,0.00016712,2]
[338651497,1726847449053,-518.85,0.00016712,2]
[338651498,1726847449063,-500.0,0.00016712,2]
[338651499,1726847449072,-500.0,0.00016712,2]
[338651500,1726847449081,-500.0,0.00016712,2]
[338651501,1726847449090,-500.0,0.00016712,2]
[338651502,1726847449099,-510.27,0.00016712,2]
[338651503,1726847449109,-500.0,0.00016712,2]
[338651504,1726847449118,-500.0,0.00016712,2]
[338651505,1726847449127,-500.0,0.00016712,2]
[338651506,1726847449138,-500.0,0.00016712,2]
[338651507,1726847449148,-500.0,0.00016712,2]
[338651508,1726847449157,-500.0,0.00016712,2]
[338651509,1726847449166,-436.15221317,0.00016712,2]
[338651510,1726847449176,-500.0,0.00016712,2]
[338651511,1726847449186,-500.0,0.00016712,2]
[338651512,1726847449195,-500.0,0.00016712,2]
[338651513,1726847449205,-500.0015,0.00016712,2]
[338651514,1726847449215,-500.0,0.00016712,2]
[338651515,1726847449224,-500.0,0.00016712,2]
[338651516,1726847449234,-500.0,0.00016712,2]
[338651517,1726847449244,-594.21,0.00016712,2]
[338651518,1726847449253,-500.0,0.00016712,2]
[338651519,1726847449263,-500.0,0.00016712,2]
[338651520,1726847449272,-807.52,0.00016712,2]
[338651521,1726847449282,-219.85098782,0.00016712,2]
[338651522,1726847449292,-500.0,0.00016712,2]
[338651523,1726847449301,-500.0,0.00016712,2]
[338651524,1726847449311,-500.0,0.00016712,2]
[338651525,1726847449321,-1000.0,0.00016712,2]
[338651526,1726847449332,-1000.0,0.00016712,2]
[338651527,1726847449341,-1000.0,0.00016712,2]
[338651528,1726847449351,-500.0,0.00016712,2]
[338651529,1726847449364,-1000.0,0.00016712,2]
[338651530,1726847449374,-500.0,0.00016712,2]
[338651531,1726847449384,-337.17846631,0.00016712,2]
[338651532,1726847449393,-1000.0,0.00016712,2]
[338651533,1726847449403,-1000.0,0.00016712,2]
[338651534,1726847449413,-1000.0,0.00016712,2]
[338651535,1726847449422,-1000.0,0.00016712,2]
[338651536,1726847449434,-1000.0,0.00016712,2]
[338651537,1726847449444,-1000.0,0.00016712,2]
[338651538,1726847449454,-500.0,0.00016712,2]
[338651539,1726847449464,-1000.0,0.00016712,2]
[338651540,1726847449473,-1000.0,0.00016712,2]
[338651541,1726847449484,-1000.0,0.00016712,2]
[338651542,1726847449494,-1000.0,0.00016712,2]
[338651543,1726847449508,-1000.0,0.00016712,2]
[338651544,1726847449519,-500.0,0.00016712,2]
[338651545,1726847449530,-500.0,0.00016712,2]
[338651546,1726847449540,-500.0,0.00016712,2]
[338651547,1726847449551,-151.0,0.00016712,2]
[338651548,1726847449561,-500.0,0.00016712,2]
[338651549,1726847449572,-339.42051997,0.00016712,2]
[338651550,1726847449583,-500.0,0.00016712,2]
[338651551,1726847449593,-500.0,0.00016712,2]
[338651552,1726847449603,-500.0,0.00016712,2]
[338651553,1726847449612,-500.0,0.00016712,2]
[338651554,1726847449621,-500.0,0.00016712,2]
[338651555,1726847449631,-3000.0,0.0001672,2]
[338651556,1726847449642,-4136.039138,0.0001673,2]
[338651557,1726847449651,-500.0,0.00016735,2]
[338651558,1726847449660,-197.897181,0.00016764,2]
[338651559,1726847449670,-197.897181,0.00016764,2]
[338651560,1726847449681,-150.0,0.00016764,2]
[338651561,1726847449690,-524.0,0.00016764,2]
[338651562,1726847449700,-1216.0,0.00016764,2]
[338651563,1726847449711,-176.991934,0.00016777,2]
[338651564,1726847449721,-265.043597,0.00016777,2]
[338651565,1726847449732,-353.983869,0.00016777,2]
[338651566,1726847449743,-530.087193,0.00016777,2]
[338651567,1726847449755,-580.660763,0.00016777,2]
[338651568,1726847449764,-172.038029,0.00016777,2]
[338651569,1726847449774,-537.944563,0.00016777,2]
[338651570,1726847449791,-550.017169,0.00016777,2]
[338651571,1726847449809,-498.144768,0.00016777,2]
[338651572,1726847449824,-229.120789,0.00016777,2]
[338651573,1726847449836,-443.777647,0.00016777,2]
[338651574,1726847449850,-326.65756,0.00016777,2]
[338651575,1726847449863,-326.65756,0.00016777,2]
[338651576,1726847449879,-151.0,0.00016777,2]
[338651577,1726847449895,-151.0,0.00016777,2]
[338651578,1726847449909,-199.690421,0.00016777,2]
[338651579,1726847449924,-249.033141,0.00016777,2]
[338651580,1726847449939,-600.0,0.00016838,2]
[338651581,1726847449953,-300.0,0.000169,6]
[338651582,1726847449968,-150.0,0.000169,2]
[338651583,1726847449981,-500.0,0.0001691,2]
[338651584,1726847449997,-206.0,0.0001692,2]
[338651585,1726847450009,-151.0,0.00016922,2]
[338651586,1726847450021,-8000.0,0.0001693,2]
[338651587,1726847450031,-716.73807396,0.00016941,2]
[338651588,1726847450045,-610.56298225,0.00016941,2]
[338651589,1726847450059,-600.0,0.0001695,2]
[338651590,1726847450073,-151.0,0.00016975,2]
[338651591,1726847450086,-151.0,0.00016986,2]
[338651592,1726847450100,-500.0,0.00016986,2]
[338651593,1726847450114,-179.65,0.00016986,2]
[338651594,1726847450129,-504.96,0.00016986,2]
[338651595,1726847450140,-500.0,0.00016986,2]
[338651596,1726847450152,-500.0,0.00016986,2]
[338651597,1726847450163,-500.0,0.00016986,2]
[338651598,1726847450177,-469.63465736,0.00016986,2]
[338651599,1726847450191,-500.0,0.00016986,2]
[338651600,1726847450212,-500.0,0.00016986,2]
[338651601,1726847450233,-577.97,0.00016986,2]
[338651602,1726847450248,-805.76,0.00016986,2]
[338651603,1726847450271,-500.0,0.00016986,2]
[338651604,1726847450283,-500.0,0.00016986,2]
[338651605,1726847450296,-500.0,0.00016986,2]
[338651606,1726847450311,-500.0,0.00016986,2]
[338651607,1726847450324,-654.13,0.00016986,2]
[338651608,1726847450339,-500.0,0.00016986,2]
[338651609,1726847450356,-500.0,0.00016986,2]
[338651610,1726847450371,-767.0,0.00016986,2]
[338651611,1726847450386,-500.0,0.00016986,2]
[338651612,1726847450400,-500.0,0.00016986,2]
[338651613,1726847450416,-313.04695056,0.00016986,2]
[338651614,1726847450433,-500.0,0.00016986,2]
[338651615,1726847450449,-500.0,0.00016986,2]
[338651616,1726847450462,-500.0,0.00016986,2]
[338651617,1726847450475,-500.0,0.00016986,2]
[338651618,1726847450488,-500.0,0.00016986,2]
[338651619,1726847450501,-500.0,0.00016986,2]
[338651620,1726847450516,-500.0,0.00016986,2]
[338651621,1726847450530,-155.38962,0.00016986,2]
[338651622,1726847450545,-680.73,0.00016986,2]
[338651623,1726847450559,-500.0,0.00016986,2]
[338651624,1726847450572,-516.67,0.00016986,2]
[338651625,1726847450584,-500.0,0.00016986,2]
[338651626,1726847450596,-336.29100792,0.00016986,2]
[338651627,1726847450607,-859.52,0.00016986,2]
[338651628,1726847450622,-500.0,0.00016986,2]
[338651629,1726847450634,-500.0,0.00016986,2]
[338651630,1726847450646,-500.0,0.00016986,2]
[338651631,1726847450659,-500.0,0.00016986,2]
[338651632,1726847450672,-519.88798941,0.00016986,2]
[338651633,1726847450685,-517.84537314,0.00016986,2]
[338651634,1726847450696,-500.0,0.00016986,2]
[338651635,1726847450710,-500.0,0.00016986,2]
[338651636,1726847450721,-500.0,0.00016986,2]
[338651637,1726847450733,-500.0,0.00016986,2]
[338651638,1726847450744,-468.98,0.00016986,2]
[338651639,1726847450756,-500.0,0.00016986,2]
[338651640,1726847450768,-500.0,0.00016986,2]
[338651641,1726847450780,-500.0,0.00016986,2]
[338651642,1726847450792,-500.0,0.00016986,2]
[338651643,1726847450804,-606.52,0.00016986,2]
[338651644,1726847450815,-510.88,0.00016986,2]
[338651645,1726847450827,-1125.02,0.00016986,2]
[338651646,1726847450838,-2101.45,0.00016986,2]
[338651647,1726847450850,-500.0,0.00016986,2]
[338651648,1726847450862,-608.01,0.00016986,2]
[338651649,1726847450874,-500.0,0.00016986,2]
[338651650,1726847450887,-297.61,0.00016986,2]
[338651651,1726847450899,-500.0,0.00016986,2]
[338651652,1726847450912,-500.0,0.00016986,2]
[338651653,1726847450923,-500.0,0.00016986,2]
[338651654,1726847450940,-500.0,0.00016986,2]
[338651655,1726847450953,-500.0,0.00016986,2]
[338651656,1726847450964,-500.0,0.00016986,2]
[338651657,1726847450976,-500.0,0.00016986,2]
[338651658,1726847450988,-240.27,0.00016986,2]
[338651659,1726847450999,-770.65,0.00016986,2]
[338651660,1726847451011,-151.0,0.00016986,2]
[338651661,1726847451023,-171.13255659,0.00016986,2]
[338651662,1726847451034,-761.01,0.00016986,2]
[338651663,1726847451046,-500.0,0.00016986,2]
[338651664,1726847451057,-500.0,0.00016986,2]
[338651665,1726847451069,-668.31,0.00016986,2]
[338651666,1726847451080,-500.0,0.00016986,2]
[338651667,1726847451091,-682.12,0.00016986,2]
[338651668,1726847451103,-169.15526229,0.00016986,2]
[338651669,1726847451115,-500.0,0.00016986,2]
[338651670,1726847451126,-500.0,0.00016986,2]
[338651671,1726847451138,-500.0,0.00016986,2]
[338651672,1726847451149,-500.0,0.00016986,2]
[338651673,1726847451160,-500.0,0.00016986,2]
[338651674,1726847451172,-1013.35,0.00016986,2]
[338651675,1726847451186,-500.0,0.00016986,2]
[338651676,1726847451198,-500.0,0.00016986,2]
[338651677,1726847451210,-324.36611061,0.00016986,2]
[338651678,1726847451222,-2979.29,0.00016986,2]
[338651679,1726847451233,-204.3399437,0.00016986,2]
[338651680,1726847451245,-577.53,0.00016986,2]
[338651681,1726847451257,-500.0,0.00016986,2]
[338651682,1726847451269,-500.0,0.00016986,2]
[338651683,1726847451281,-504.24929641,0.00016986,2]
[338651684,1726847451293,-500.0,0.00016986,2]
[338651685,1726847451304,-167.338077,0.00016986,2]
[338651686,1726847451315,-461.24020126,0.00016986,2]
[338651687,1726847451327,-151.0,0.00016986,2]
[338651688,1726847451340,-859.03,0.00016986,2]
[338651689,1726847451352,-500.0,0.00016986,2]
[338651690,1726847451365,-500.0,0.00016986,2]
[338651691,1726847451378,-501.16918982,0.00016986,2]
[338651692,1726847451387,-500.0,0.00016986,2]
[338651693,1726847451397,-500.0,0.00016986,2]
[338651694,1726847451408,-500.0,0.00016986,2]
[338651695,1726847451419,-1204.64,0.00016986,2]
[338651696,1726847451429,-500.0,0.00016986,2]
[338651697,1726847451438,-625.31,0.00016986,2]
[338651698,1726847451448,-742.26,0.00016986,2]
[338651699,1726847451457,-500.0,0.00016986,2]
[338651700,1726847451467,-197.897181,0.00016986,2]
[338651701,1726847451718,-678.32,0.00016986,2]
[338651702,1726847451729,-314.978215,0.00016986,2]
[338651703,1726847451739,-197.897181,0.00016986,2]
[338651704,1726847451748,-151.0,0.00016986,2]
[338651705,1726847451757,-748.33,0.00016986,2]
[338651706,1726847451767,-314.978215,0.00016986,2]
[338651707,1726847451775,-500.0,0.00016986,2]
[338651708,1726847451785,-507.59,0.00016986,2]
[338651709,1726847451794,-1005.22,0.00016986,2]
[338651710,1726847451803,-683.6,0.00016986,2]
[338651711,1726847451812,-1122.17,0.00016986,2]
[338651712,1726847451821,-25885.18,0.00016986,2]
[338651713,1726847451831,-898.3,0.00016986,2]
[338651714,1726847451840,-500.0,0.00016986,2]
[338651715,1726847451849,-510.34,0.00016986,2]
[338651716,1726847451858,-7987.48,0.00016986,2]
[338651717,1726847451867,-500.0,0.00016986,2]
[338651718,1726847451877,-1165.73,0.00016986,2]
[338651719,1726847451885,-151.0,0.00016986,2]
[338651720,1726847451895,-500.0,0.00016986,2]
[338651721,1726847451904,-762.73,0.00016986,2]
[338651722,1726847451913,-500.0,0.00016986,2]
[338651723,1726847451923,-500.0,0.00016986,2]
[338651724,1726847451934,-500.0,0.00016986,2]
[338651725,1726847451944,-500.0,0.00016986,2]
[338651726,1726847451953,-500.0,0.00016986,2]
[338651727,1726847451963,-500.0,0.00016986,2]
[338651728,1726847451972,-1008.79,0.00016986,2]
[338651729,1726847451981,-801.13,0.00016986,2]
[338651730,1726847451991,-1470.01,0.00016986,2]
[338651731,1726847452000,-500.0,0.00016986,2]
[338651732,1726847452014,-500.0,0.00016986,2]
[338651733,1726847452023,-551.8,0.00016986,2]
[338651734,1726847452033,-1141.47,0.00016986,2]
[338651735,1726847452045,-625.68,0.00016986,2]
[338651736,1726847452054,-744.38,0.00016986,2]
[338651737,1726847452064,-500.0,0.00016986,2]
[338651738,1726847452073,-425.24456235,0.00016986,2]
[338651739,1726847452082,-689.43,0.00016986,2]
[338651740,1726847452091,-500.0,0.00016986,2]
[338651741,1726847452102,-612.23,0.00016986,2]
[338651742,1726847452111,-200.0,0.00016986,2]
[338651743,1726847452121,-500.0,0.00016986,2]
[338651744,1726847452130,-303.297713,0.00016986,2]
[338651745,1726847452141,-692.59,0.00016986,2]
[338651746,1726847452150,-500.0,0.00016986,2]
[338651747,1726847452159,-303.297713,0.00016986,2]
[338651748,1726847452169,-500.0,0.00016986,2]
[338651749,1726847452179,-326.65756,0.00016986,2]
[338651750,1726847452188,-500.0,0.00016986,2]
[338651751,1726847452198,-500.0,0.00016986,2]
[338651752,1726847452207,-326.65756,0.00016986,2]
[338651753,1726847452216,-500.0,0.00016986,2]
[338651754,1726847452226,-568.13,0.00016986,2]
[338651755,1726847452235,-656.31,0.00016986,2]
[338651756,1726847452244,-998.36,0.00016986,2]
[338651757,1726847452254,-500.0,0.00016986,2]
[338651758,1726847452263,-500.0,0.00016986,2]
[338651759,1726847452273,-509.26,0.00016986,2]
[338651760,1726847452282,-500.0,0.00016986,2]
[338651761,1726847452291,-596.23307049,0.00016986,2]
[338651762,1726847452301,-632.1,0.00016986,2]
[338651763,1726847452310,-638.41,0.00016986,2]
[338651764,1726847452320,-500.0,0.00016986,2]
[338651765,1726847452329,-500.0,0.00016986,2]
[338651766,1726847452339,-500.0,0.00016986,2]
[338651767,1726847452350,-730.6,0.00016986,2]
[338651768,1726847452360,-500.0,0.00016986,2]
[338651769,1726847452369,-705.45,0.00016986,2]
[338651770,1726847452379,-500.0,0.00016986,2]
[338651771,1726847452388,-500.0,0.00016986,2]
[338651772,1726847452398,-500.0,0.00016986,2]
[338651773,1726847452408,-500.0,0.00016986,2]
[338651774,1726847452420,-500.0,0.00016986,2]
[338651775,1726847452431,-543.66,0.00016986,2]
[338651776,1726847452443,-1247.9,0.00016986,2]
[338651777,1726847452453,-615.92,0.00016986,2]
[338651778,1726847452463,-504.61,0.00016986,2]
[338651779,1726847452472,-746.39,0.00016986,2]
[338651780,1726847452483,-500.0,0.00016986,2]
[338651781,1726847452494,-151.0,0.00016986,2]
[338651782,1726847452504,-500.0,0.00016986,2]
[338651783,1726847452517,-500.0,0.00016986,2]
[338651784,1726847452528,-500.0,0.00016986,2]
[338651785,1726847452538,-158.62,0.00016986,2]
[338651786,1726847452548,-500.0,0.00016986,2]
[338651787,1726847452558,-500.0,0.00016986,2]
[338651788,1726847452569,-500.0,0.00016986,2]
[338651789,1726847452578,-2311.09,0.00016986,2]
[338651790,1726847452588,-500.0,0.00016986,2]
[338651791,1726847452598,-577.04405517,0.00016986,2]
[338651792,1726847452607,-500.0,0.00016986,2]
[338651793,1726847452617,-151.0,0.00016986,2]
[338651794,1726847452628,-500.0,0.00016986,2]
[338651795,1726847452637,-500.0,0.00016986,2]
[338651796,1726847452647,-500.0,0.00016986,2]
[338651797,1726847452656,-254.86,0.00016986,2]
[338651798,1726847452667,-500.0,0.00016986,2]
[338651799,1726847452679,-500.0,0.00016986,2]
[338651800,1726847452689,-500.0,0.00016986,2]
[338651801,1726847452699,-247.63,0.00016986,2]
[338651802,1726847452708,-510.27,0.00016986,2]
[338651803,1726847452718,-500.0,0.00016986,2]
[338651804,1726847452728,-500.0,0.00016986,2]
[338651805,1726847452738,-500.0,0.00016986,2]
[338651806,1726847452748,-359.36514527,0.00016986,2]
[338651807,1726847452758,-154.92208582,0.00016986,2]
[338651808,1726847452767,-500.0,0.00016986,2]
[338651809,1726847452777,-500.0,0.00016986,2]
[338651810,1726847452786,-500.0,0.00016986,2]
[338651811,1726847452796,-500.0,0.00016986,2]
[338651812,1726847452806,-500.0,0.00016986,2]
[338651813,1726847452816,-500.0,0.00016986,2]
[338651814,1726847452826,-283.86907839,0.00016986,2]
[338651815,1726847452836,-594.21,0.00016986,2]
[338651816,1726847452845,-500.0,0.00016986,2]
[338651817,1726847452856,-500.0,0.00016986,2]
[338651818,1726847452865,-807.52,0.00016986,2]
[338651819,1726847452875,-500.0,0.00016986,2]
[338651820,1726847452885,-500.0,0.00016986,2]
[338651821,1726847452904,-500.0,0.00016986,2]
[338651822,1726847452915,-249.70408648,0.00016986,2]
[338651823,1726847452925,-500.0,0.00016986,2]
[338651824,1726847452936,-500.0,0.00016986,2]
[338651825,1726847452946,-500.0,0.00016986,2]
[338651826,1726847452956,-500.0,0.00016986,2]
[338651827,1726847452967,-500.0,0.00016986,2]
[338651828,1726847452978,-500.0,0.00016986,2]
[338651829,1726847452988,-287.18125232,0.00016986,2]